Cogmind - Beta 13 @@@ ROGUE MODE // 2024.04.21 @ 20:26:31 Player: Bace Troncons Result: Destroyed by Y-54 Guardian with Gatling Laser Performance ------------- Evolutions (3) 1500 Regions Visited (6) 1200 Robots Destroyed (76) 380 Value Destroyed (2212) 2212 Prototype IDs (27) 540 Alien Tech Used (0) 0 Bonus (442) 442 TOTAL SCORE: 6274 Bonus ------- High Alert Combat Kills 142 Aligned with FarCom 300 Cogmind --------- Core Integrity 0/700 Matter 300/300 Energy 100/100 System Corruption 6% Temperature Cool (6) Movement Core (350) Ox6 Location -7/Factory Parts ------- > --- POWER (2) -------- (None) > --- PROPULSION (4) --- (None) > --- UTILITY (5) ------ Large Storage Unit Improved Signal Interpreter Target Analyzer > --- WEAPON (2) ------- (None) > --- INVENTORY (15) --- Faulty Improved VTOL Module Small Storage Unit Large Storage Unit Weapon Cycler Microactuators ECM Suite Shock Rifle Heavy Laser Heavy Laser Flak Gun Datajack Peak State ------------ > --- POWER ------------ Light Nuclear Core > --- PROPULSION ------- Aluminum Leg Aluminum Leg Potential Leg Potential Leg > --- UTILITY ---------- Large Storage Unit Improved Sensor Array Improved Signal Interpreter Hacking Suite > --- WEAPON ----------- Advanced Assault Cannon Advanced Assault Cannon > --- INVENTORY -------- Light Deuterium Engine Light Nuclear Core Light Nuclear Core Light Treads Aluminum Leg Aluminum Leg Improved VTOL Module Small Storage Unit ECM Suite Heavy EM Shotgun Assault Cannon Missile Launcher Datajack Heavy Mace [Rating: 46] Favorites ----------- Power Ion Engine Engine Ion Engine Power Core Light Nuclear Core Propulsion Aluminum Leg Treads Light Treads Leg Aluminum Leg Utility Large Storage Unit Device Improved Sensor Array Storage Large Storage Unit Processor Improved Signal Interpreter Hackware Hacking Suite Protection Hardened Light Armor Plating Weapon Hammer Energy Gun EM Shotgun Ballistic Gun Light Assault Rifle Ballistic Cannon Advanced Assault Cannon Launcher Missile Launcher Special Weapon Remote Datajack Impact Weapon Hammer Build | -11 -10 -10 -10 -9 -8 -7 ------- Run | Yrd Mat Min Exi Min Mat Fac Slots Evolved 6 | . . . . . 4 2 Power 1 | . . . . . . 1 Propulsion 2 | . . . . . 2 . Utility 3 | . . . . . 2 1 Weapon . | . . . . . . . Parts Attached 69 | 4 13 1 2 1 37 11 Power 10 | 1 1 . . . 7 1 Engine 6 | 1 1 . . . 4 . Core 4 | . . . . . 3 1 Reactor . | . . . . . . . Propulsion 26 | 2 5 1 2 . 14 2 Treads 6 | 2 2 . . . 2 . Leg 20 | . 3 1 2 . 12 2 Wheel . | . . . . . . . Hover . | . . . . . . . Flight . | . . . . . . . Utility 11 | 1 2 . . . 3 5 Device 3 | . . . . . 1 2 Storage 3 | 1 1 . . . . 1 Processor 2 | . . . . . 1 1 Hackware 1 | . . . . . 1 . Protection 2 | . 1 . . . . 1 Artifact . | . . . . . . . Weapon 22 | . 5 . . 1 13 3 Energy Gun 4 | . 2 . . . 2 . Energy Cannon . | . . . . . . . Ballistic Gun 2 | . 2 . . . . . Ballistic Cannon 8 | . . . . . 7 1 Launcher 5 | . . . . 1 4 . Special Weapon 1 | . . . . . . 1 Impact Weapon 2 | . 1 . . . . 1 Slashing Weapon . | . . . . . . . Piercing Weapon . | . . . . . . . Special Melee Weapon . | . . . . . . . Unidentified Prototypes . | . . . . . . . Corrupted Parts 1 | . . . . . . 1 System Corruption 2 | . . . . . . 2 Parts Lost 32 | . 6 1 . . 13 12 Power 7 | . 1 1 . . 3 2 Propulsion 13 | . 3 . . . 6 4 Utility 4 | . . . . . 1 3 Weapon 8 | . 2 . . . 3 3 Highest Loss Streak 11 | . 3 1 . . 11 8 To Critical Strikes 1 | . 1 . . . . . Average Slot Usage (%) 80 | . 84 97 85 85 90 53 Engine 6 | . 13 11 . . 4 . Core 1 | . . . . . 4 4 Treads 7 | . 18 . . . . 3 Leg 18 | . 9 28 28 28 33 6 Device 1 | . . . . . 6 1 Storage 11 | . 14 14 14 14 9 7 Processor 3 | . . . . . 5 8 Hackware 2 | . . . . . 8 3 Protection 4 | . 2 14 14 14 1 2 Energy Gun 5 | . 4 14 14 14 4 . Ballistic Gun 4 | . 12 . . . . . Ballistic Cannon 3 | . . . . . 9 4 Impact Weapon 6 | . 7 14 14 5 . 6 Naked Turns . | . . . . . . . Heaviest Build 50 | 10 33 33 30 31 38 50 Greatest Support 80 | 40 40 20 60 60 80 20 Greatest Overweight (x) 16 | 1 1 1 1 . 8 16 Average Overweight (x) . | . . 1 . . . 2 Largest Inventory Capacity 15 | 8 15 15 15 15 15 15 Average Capacity 14 | 7 14 15 15 15 15 15 Most Carried 15 | 5 10 6 8 8 15 11 Average Carried 7 | 2 6 5 6 8 10 8 Final Capacity 15 | 8 15 15 15 15 15 15 Final Carried 11 | 5 5 6 8 8 6 11 Class Distribution -------------------- 83% | Mutant 14% | Skirmisher Dominant Class ---------------- Mutant | -10/Materials Mutant | -10/Mines Mutant | -10/Exiles Mutant | -9/Mines Skirmisher | -8/Materials Mutant | -7/Factory Resources | -11 -10 -10 -10 -9 -8 -7 ----------- Run | Yrd Mat Min Exi Min Mat Fac Matter Collected 1485 | 215 225 10 . 35 680 320 Remotely . | . . . . . . . Salvage Created 2083 | . 615 16 . 58 1074 320 Parts 112 | . 27 . . 1 76 8 Haulers Intercepted 5 | . 2 . . . 3 . Recyclers Shooed 1 | . . . . . 1 . Parts Field Recycled . | . . . . . . . Retrieved Matter . | . . . . . . . Parts Self-Destructed . | . . . . . . . Prevented . | . . . . . . . Kills | -11 -10 -10 -10 -9 -8 -7 ------- Run | Yrd Mat Min Exi Min Mat Fac Combat Hostiles Destroyed 50 | . 14 1 . 2 26 7 Melee 11 | . 6 . . . . 5 Guns 9 | . 4 . . . 5 . Cannons 4 | . . . . . 4 . AOE 19 | . . . . 2 17 . Classes Destroyed 13 | . 5 1 . . 6 1 Worker 4 | . . . . . 4 . Builder 7 | . . . . . 7 . Hauler 5 | . 2 . . . 3 . Recycler 2 | . . . . . 2 . Operator 4 | . 3 . . . 1 . Watcher 5 | . 1 . . . 4 . Swarmer 7 | . 3 . . . 4 . Grunt 37 | . 11 . . 2 18 6 Brawler 1 | . . . . . 1 . Duelist 1 | . . . . . 1 . Sentry 2 | . . . . . 2 . Programmer 1 | . . . . . . 1 Assembled 1 | . . 1 . . . . Best Kill Streak 11 | . 3 1 . 2 11 3 Combat Bots Only 5 | . 3 1 . 2 5 3 Max Kills in Single Turn 4 | . 1 1 . 1 4 1 Gunslinging . | . . . . . . . Exploded 4 | . . . . 1 4 . Melee 1 | . 1 . . . . 1 Uniques/NPCs Destroyed . | . . . . . . . Combat | -11 -10 -10 -10 -9 -8 -7 -------- Run | Yrd Mat Min Exi Min Mat Fac Hostile Shots Fired 605 | . 160 4 . 1 187 253 Missed 163 | . 45 . . . 52 66 Damage Taken 5666 | . 1232 124 . 17 2176 2117 Core 1261 | . 190 . . 17 348 706 Absorbed by Shields . | . . . . . . . Regen/Repaired (Parts) 137 | . 137 . . . . . Core Remaining (%) 51 | 100 . . . 17 36 . Volleys Fired 126 | . 48 2 . 5 70 1 Largest 2 | . 2 1 . 1 2 1 Hottest 96 | . 60 45 . 30 96 48 Shots Fired 203 | . 87 2 . 5 108 1 Gun 108 | . 87 2 . . 19 . Cannon 61 | . . . . . 60 1 Launcher 34 | . . . . 5 29 . Special . | . . . . . . . Kinetic 136 | . 75 . . . 60 1 Thermal 12 | . 12 . . . . . Explosive 34 | . . . . 5 29 . Electromagnetic 21 | . . 2 . . 19 . Robot Hit Streak 11 | . 6 2 . 4 11 . Robot Miss Streak 5 | . 3 2 . . 5 1 Penetration Max . | . . . . . . . Secondary Targets 1 | . 1 . . . . . Max Gunslinging Chain 1 | . 1 . . . . . Shots Hit Robots 180 | . 83 3 . 2 64 28 Core Hits 125 | . 23 1 . 4 90 7 Critical Kills 2 | . 1 . . . . 1 Critical Parts Destroyed 11 | . 7 . . . . 4 Critical Strikes 15 | . 8 . . . 1 6 Blast 1 | . . . . . 1 . Smash 14 | . 8 . . . . 6 Melee Attacks 100 | . 53 3 . . . 44 Impact 100 | . 53 3 . . . 44 Slashing . | . . . . . . . Piercing . | . . . . . . . Sneak Attacks 1 | . 1 . . . . . Combat Hostiles . | . . . . . . . Follow-up Attacks . | . . . . . . . Damage Inflicted 7783 | . 1261 85 . 169 5046 1222 Guns 798 | . 446 16 . . 336 . Cannons 971 | . . . . . 971 . Explosions 3908 | . . . . 169 3739 . Melee 2104 | . 815 69 . . . 1220 Ramming 2 | . . . . . . 2 Kinetic 1325 | . 354 . . . 971 . Thermal 286 | . 92 . . . 194 . Explosive 3554 | . . . . 169 3385 . Electromagnetic 512 | . . 16 . . 496 . Impact 2104 | . 815 69 . . . 1220 Slashing . | . . . . . . . Piercing . | . . . . . . . Highest Corruption 6 | . . . . . . 6 Average Corruption 2 | . . . . . . 2 Corruption Purged . | . . . . . . . Corruption Blocked . | . . . . . . . Effects 8 | . . . . . . 8 Message Errors 1 | . . . . . . 1 Matter Fused 1 | . . . . . . 1 Energy Discharges 2 | . . . . . . 2 Data Loss (minor) 3 | . . . . . . 3 Alerts 1 | . . . . . . 1 Overload Shots . | . . . . . . . Overflow Damage 711 | . 285 6 . . 176 244 Projectiles 37 | . . . . . 37 . Explosions 139 | . . . . . 139 . Melee 535 | . 285 6 . . . 244 Knockbacks 21 | . 3 . . . 13 5 Impact 8 | . 3 . . . . 5 Kinetic 13 | . . . . . 13 . Secondary . | . . . . . . . Self-Inflicted Damage 10 | . . . . . 10 . Shots 2 | . . . . . 2 . Rammed 6 | . . . . . . 6 Targets Rammed 7 | . . . . . . 7 Kicked 1 | . . . . . . 1 Crushed . | . . . . . . . Highest Temperature 349 | . 40 28 . 4 349 15 Average Temperature 72 | . 19 17 . 4 90 6 Received Heat Transfer 2787 | . 501 . . 9 1260 1017 Effects 2 | . . . . . 2 . Shutdowns 1 | . . . . . 1 . Energy Bleed 1 | . . . . . 1 . Siege Activations . | . . . . . . . Robots Corrupted 1 | . . 1 . . . . Combat Hostiles 1 | . . 1 . . . . Parts Fried 9 | . 5 . . . 1 3 Impact Corruptions 26 | . 16 1 . . . 9 Robots Melted . | . . . . . . . Combat Hostiles . | . . . . . . . Parts Melted 1 | . . . . . . 1 Heat Transferred 400 | . 200 . . . 200 . Parts Sabotaged . | . . . . . . . Parts Stolen . | . . . . . . . Parts Stripped . | . . . . . . . Power Chain Reactions 2 | . . . . . 2 . Alert | -11 -10 -10 -10 -9 -8 -7 ------- Run | Yrd Mat Min Exi Min Mat Fac Peak Influence 620 | . 246 36 . 73 620 381 Initial 276 | . . 36 . . 27 276 Average 165 | . 101 34 . 29 236 256 Maximum Alert Level 2 | . 1 . . . 2 1 Low Security (%) 66 | 100 96 100 . 100 56 8 Level 1 27 | . 3 . . . 20 91 Level 2 6 | . . . . . 23 . Level 3 . | . . . . . . . Level 4 . | . . . . . . . Level 5 . | . . . . . . . High Security . | . . . . . . . Max Security . | . . . . . . . Squads Dispatched 12 | . 4 . . . 6 2 Investigation 4 | . 2 . . . 2 . Extermination 1 | . . . . . . 1 Reinforcement 6 | . 2 . . . 3 1 Assault 1 | . . . . . 1 . Garrison . | . . . . . . . Intercept . | . . . . . . . Searches Triggered . | . . . . . . . Construction Impeded 2 | . . . . . 2 . Haulers Reinforced . | . . . . . . . Active Scanning Responses . | . . . . . . . Cargo Convoy Interrupts . | . . . . . . . Stealth | -11 -10 -10 -10 -9 -8 -7 --------- Run | Yrd Mat Min Exi Min Mat Fac Distress Signals 5 | . 3 . . 1 . 1 Communications Jammed . | . . . . . . . Distress Signals . | . . . . . . . Times Spotted 83 | . 29 1 . 1 40 12 Peak Tracking Total 7 | . 6 1 . 2 7 5 Tactical Retreats 5 | . 2 . . . 1 2 Traps | -11 -10 -10 -10 -9 -8 -7 ------- Run | Yrd Mat Min Exi Min Mat Fac Traps Triggered 7 | . 1 . . . 6 . Indirectly 1 | . . . . . 1 . Trap Hack Attempts . | . . . . . . . Triggered . | . . . . . . . Disarmed . | . . . . . . . Reprogrammed . | . . . . . . . Reused . | . . . . . . . Traps Extracted . | . . . . . . . Installed . | . . . . . . . Triggered . | . . . . . . . Machines | -11 -10 -10 -10 -9 -8 -7 ---------- Run | Yrd Mat Min Exi Min Mat Fac Machines Disabled 5 | . . . . . 4 1 Max in Single Turn 2 | . . . . . 2 1 Machines Repaired . | . . . . . . . Machines Dismantled . | . . . . . . . Machines Sabotaged . | . . . . . . . Overloaded Fab Kills . | . . . . . . . Hacking | -11 -10 -10 -10 -9 -8 -7 --------- Run | Yrd Mat Min Exi Min Mat Fac Machines Accessed 10 | . 6 . 1 . 3 . Terminals 5 | . 5 . . . . . Fabricators . | . . . . . . . Repair Stations 1 | . 1 . . . . . Recycling Units 1 | . . . . . 1 . Scanalyzers 2 | . . . . . 2 . Garrison Access . | . . . . . . . Total Hacks 29 | . 20 . 1 . 8 . Successful 19 | . 12 . 1 . 6 . Failed 10 | . 8 . . . 2 . Catastrophic . | . . . . . . . Database Lockouts . | . . . . . . . Manual 3 | . 2 . 1 . . . Terminals 15 | . 15 . . . . . Fabricators . | . . . . . . . Repair Stations 5 | . 5 . . . . . Recycling Units 3 | . . . . . 3 . Scanalyzers 5 | . . . . . 5 . Garrison Access . | . . . . . . . Terminal Hacks 10 | . 9 . 1 . . . Record 1 | . 1 . . . . . Prototype ID Bank 1 | . 1 . . . . . Branch Access Points 2 | . 2 . . . . . Terminal Index 1 | . 1 . . . . . Locate Traps 2 | . 2 . . . . . Transport Status 1 | . 1 . . . . . Hauler Manifests 1 | . 1 . . . . . Derelict Proto ID Bank 1 | . . . 1 . . . Fabricator Hacks . | . . . . . . . Repair Station Hacks 3 | . 3 . . . . . Scan Component 2 | . 2 . . . . . Repair 1 | . 1 . . . . . Recycling Unit Hacks 3 | . . . . . 3 . Process 1 | . . . . . 1 . Retrieve Matter 2 | . . . . . 2 . Scanalyzer 3 | . . . . . 3 . Insert Component 2 | . . . . . 2 . Analyze 1 | . . . . . 1 . Garrison Access Hacks . | . . . . . . . Unauthorized Hacks . | . . . . . . . Terminals . | . . . . . . . Fabricators . | . . . . . . . Repair Stations . | . . . . . . . Recycling Units . | . . . . . . . Scanalyzers . | . . . . . . . Garrison Access . | . . . . . . . Data Cores Recovered 1 | . 1 . . . . . Used 1 | . 1 . . . . . Hacking Detections 7 | . 5 . . . 2 . Full Trace Events 4 | . 3 . . . 1 . Feedback Events . | . . . . . . . Feedback Blocked . | . . . . . . . Robot Schematics Acquired . | . . . . . . . Robots Built . | . . . . . . . Authchips . | . . . . . . . Time . | . . . . . . . Total Robot Build Rating . | . . . . . . . Part Schematics Acquired 1 | . . . . . 1 . Parts Built . | . . . . . . . Authchips . | . . . . . . . Time . | . . . . . . . Total Part Build Rating . | . . . . . . . Parts Repaired 1 | . 1 . . . . . Time 26 | . 26 . . . . . Parts Recycled . | . . . . . . . Recycled Matter 125 | . . . . . 125 . Retrieved Matter 143 | . . . . . 143 . Retrieved Components . | . . . . . . . Parts Scanalyzed 2 | . . . . . 2 . Part Schematics Acquired 1 | . . . . . 1 . Parts Damaged . | . . . . . . . Bothacking | -11 -10 -10 -10 -9 -8 -7 ------------ Run | Yrd Mat Min Exi Min Mat Fac Used RIF Installer . | . . . . . . . Robots Hacked . | . . . . . . . Non-combat . | . . . . . . . Combat . | . . . . . . . Robot Hacks Applied . | . . . . . . . Relay Couplers Released . | . . . . . . . Fabnet Peak Effective % . | . . . . . . . Robots Rewired . | . . . . . . . Allies Hacked . | . . . . . . . Hacks Repelled . | . . . . . . . Allies | -11 -10 -10 -10 -9 -8 -7 -------- Run | Yrd Mat Min Exi Min Mat Fac Total Allies . | . . . . . . . Largest Group . | . . . . . . . Highest-Rated Group . | . . . . . . . Highest-Rated Ally . | . . . . . . . Total Orders . | . . . . . . . Ally Attacks . | . . . . . . . Total Damage . | . . . . . . . Kills . | . . . . . . . Allies Corrupted . | . . . . . . . Allies Melted . | . . . . . . . Intel | -11 -10 -10 -10 -9 -8 -7 ------- Run | Yrd Mat Min Exi Min Mat Fac Robot Analysis Total . | . . . . . . . Derelict Logs Recovered . | . . . . . . . Drone Launches . | . . . . . . . Drone Recoveries . | . . . . . . . Exploration | -11 -10 -10 -10 -9 -8 -7 ------------- Run | Yrd Mat Min Exi Min Mat Fac Turns Passed 3680 | 63 1316 249 347 44 927 734 Spaces Moved 1753 | 38 551 124 247 36 565 192 Core 19 | 8 . . . . 2 9 Treads 511 | 30 372 . . . 8 101 Legs 1223 | . 179 124 247 36 555 82 Wheels . | . . . . . . . Hover . | . . . . . . . Flight . | . . . . . . . Fastest Speed 50 | 50 160 190 90 90 90 190 Average Speed 157 | 139 170 190 139 90 108 278 Slowest Speed 850 | 160 240 190 190 90 450 850 Overloaded Moves . | . . . . . . . Propulsion Burnouts . | . . . . . . . Robots Hopped . | . . . . . . . Cave-ins Triggered . | . . . . . . . Exploration Rate (%) 32 | 3 81 27 63 9 41 4 Regions Visited 6 Branch Regions 3 Pre-discovered Areas . | . . . . . . . Known Exits Taken 2 | . 1 . . . 1 . Unknown Exits Taken 4 | 1 . 1 1 1 . . Scrap Searched 1 | . . 1 . . . . Spaces Dug 27 | . 2 . . . 20 5 Terrain Destroyed 231 | . 2 . . 29 195 5 Melee 7 | . 2 . . . . 5 Projectile 9 | . . . . . 9 . AOE 215 | . . . . 29 186 . Terrain Rammed . | . . . . . . . Walls Destroyed . | . . . . . . . Machines Disabled . | . . . . . . . Actions | -11 -10 -10 -10 -9 -8 -7 --------- Run | Yrd Mat Min Exi Min Mat Fac Total 2277 | 46 759 130 248 41 760 293 Wait 171 | . 84 . . . 57 30 Move 1747 | 37 550 123 246 35 564 192 Hop . | . . . . . . . Pick Up 36 | 5 8 1 . . 16 6 Fast Attach 30 | 4 3 . . . 15 8 Attach 23 | . 7 . . . 13 3 Detach 7 | . 1 . . . 4 2 Swap 16 | . 3 1 2 1 9 . Drop 14 | . 2 . . . 12 . Fire 126 | . 48 2 . 5 70 1 Melee 100 | . 53 3 . . . 44 Ram 6 | . . . . . . 6 Kick 1 | . . . . . . 1 Crush . | . . . . . . . Escape Stasis . | . . . . . . . Rewire . | . . . . . . . Trap . | . . . . . . . Miscellaneous . | . . . . . . . Route ------- -11/Scrapyard -10/Materials (discovered 4 exits: [*Mat] / *Min x2 / [*Sub]) -10/Mines -10/Exiles -9/Mines -8/Materials -7/Factory History --------- Turn | Location | Event 41 | -11/Scrapyard | Discovered new exit (range 15) 64 | -11/Scrapyard | Entered Materials 312 | -10/Materials | Build established: Mutant 375 | -10/Materials | Discovered new exit (range 16) 678 | -10/Materials | Identified exit to Mines 928 | -10/Materials | Core integrity fell below 50% 967 | -10/Materials | Lost 3 parts (1p1n1w) 1039 | -10/Materials | Discovered new exit (range 6) 1200 | -10/Materials | Discovered new exit (range 9) 1285 | -10/Materials | Repaired Lgt. Treads 1380 | -10/Materials | Entered Mines 1381 | -10/Mines | Assembled infested the area 1619 | -10/Mines | Deemed a non-threat by the Exiles lab entrance 1619 | -10/Mines | Discovered new exit (range 5) 1629 | -10/Mines | Entered Exiles 1675 | -10/Exiles | Met 8R-AWN 1709 | -10/Exiles | Met EX-HEX 1759 | -10/Exiles | Met EX-BIN 1783 | -10/Exiles | Aligned with FarCom system 1785 | -10/Exiles | Given EX-Vault access code 1835 | -10/Exiles | Opened EX-Vault 1861 | -10/Exiles | Found Potential Leg 1864 | -10/Exiles | Found Potential Leg 1887 | -10/Exiles | Warned to stay clear of 0b10 Research branches 1911 | -10/Exiles | Met EX-DEC 1968 | -10/Exiles | Discovered new exit (range 10) 1976 | -10/Exiles | Left Exiles lab with Potential Leg 1976 | -10/Exiles | Entered Mines 2002 | -9/Mines | Discovered new exit (range 10) 2003 | -9/Mines | Core integrity fell below 20% 2020 | -9/Mines | Entered Materials 2020 | -8/Materials | Evolved 4 slots: Propulsion x2, Utility x2 2662 | -8/Materials | Build established: Skirmisher 2820 | -8/Materials | First assault squad dispatched 2835 | -8/Materials | Discovered new exit (range 15) 2942 | -8/Materials | Core integrity fell below 50% 2945 | -8/Materials | Identified exit to Factory 2947 | -8/Materials | Entered Factory 2947 | -7/Factory | Evolved 2 slots: Power x1, Utility x1 2961 | -7/Factory | Lost 11 parts (2p5n1u3w) 3172 | -7/Factory | Build established: Mutant 3439 | -7/Factory | Lost 8 parts (2p3n2u1w) 3637 | -7/Factory | Core integrity fell below 50% 3667 | -7/Factory | Core integrity fell below 20% 3681 | -7/Factory | Destroyed by Y-54 Guardian with Gatling Laser Last Messages --------------- 03586_ Acquired 51 matter. 03598_ System corrupted: Component data lost. 03603_ R-06 Scavenger collects Imp. Heat Sink. 03620_ Aluminum Leg destroyed. 03622_ System corrupted: Component data lost. 03630_ Imp. Heat Sink destroyed. 03631_ Slammed into Y-54 Guardian. 03639_ Remote Datajack destroyed. 03640_ Slammed into Y-54 Guardian. 03640_ Destabilizing: System corrupted (+2). 03644_ Y-54 Guardian suffers critical hit (Smash). 03650_ Destroyed Imp. Deuterium Engine. 03650_ Y-54 Guardian system corrupted by crushing effect. 03652_ Y-54 Guardian misfires. 03666_ Hvy. Mace destroyed. 03670_ Slammed into Y-54 Guardian. 03677_ Destabilizing: System corrupted (+1). 03680_ Slammed into Y-54 Guardian. Map ----- +----------------------------------------------------+ | """ ######+#?????? #????????????????????????? | | """ ###### ###### #????????????????????????? | | #!![ # #????????????????????????? | | """ #!![ # #????????????????????????? | | """ #![ # #????????????????????????? | | """ # # #????????????????????????? | | """ # + #??????????????????????? | | # # " " #??????????????????????? | | ######### # " " #??????????????????????? | | ????????# # " " #??????????????????????? | | ????????# # " " ?#??????????????????????? | | ??????########+## " " ????????????????????????? | | ??????#! # " " ??????????????????????? | | ??????# # " " #??????????????????????? | | ??????# # " " ???????????????????????? | | ??????# """ """ #? " " ???????????????????????? | | ??????# """ """ #? ???????????????????????? | | ??????# """ """ #? ???????????????????????? | | ?????## +?? ????????????????????????? | | ?????#" #? ?? ????????????????????????? | | ################# ????????????????????????? | | #???# #????????????????????????? | | ########/###?# #????????????????????????? | | #???#/ ### ###??????????????????????? | | #???# # #??????????????????????? | | #???# """ # @#########??????????????? | | ######+####### """ + %%Y % ???????? | | # """ # ## ##+###??????????????? | | """" "" + "" # #??#???????????????????? | | """" "T" # "" ###+###??????????????????????? | | """" # #????????????????????????????? | | """" # #????????????????????????????? | | # #????????????????????????????? | | """" """ # #????????????????????????????? | | """" """" # #????????????????????????????? | | """" """" # "T" #????????????????????????????? | | """" """" # """ #????????????????????????????? | | ########????????????????????????????? | | ##############???????????????????????????????????? | | | | | | | | | | | | | | | | | | | | | | | +----------------------------------------------------+ Best States ------------- Heat Dissipation 48 Energy Generation 24 Energy Capacity 250 Matter Stores 300 Matter Capacity 300 Sight Range 16 Robot Scan Range 15 Terrain Scan Density 10 Armor Coverage 600 Melee Speed Boost 20 Evasion (%) 57 Target Analysis 5 Recoil Reduction 2 Offensive Hacking 10 Item Schematics ----------------- Hvy. EM Shotgun | -8/Materials | Scanalyzed Robot Schematics ------------------ None Fabricated ------------ Nothing Alien Tech Used ----------------- None Achievements -------------- None Challenges ------------ None Game ------ Seed PoweredMachineCompressor Manual? 0 Play Time 00:40:37 Cumulative 37.5 hours Start 2024.04.21 @ 19:43:31 End 2024.04.21 @ 20:26:31 Sessions 1 Manual Loads 0 Difficulty Rogue Special Mode None Game No. 60 Rogue 60 Adventurer 0 Explorer 0 Win Type - Total 0 Types 0/0/0/0/0/0/0/0/0 Lore% 22 Gallery% 29 Achievement% 24 Wizard Run 0 Options --------- Layout 1 ASCII 0 Keyboard 1 Movement Numpad Keybinds 0 Fullscreen 1 Font 24/Smallcaps Map View 50x35 Zoom Use 0% Tactical HUD 1 Map Filters NONE Filters NONE Steam 1 RUN: 07b36e63-5a61-4313-8268-9a5630b65767